bitfinex-derivatives/quotes_SOLF0:USTF0_20240924
["timestamp","ask_amount","ask_price","bid_price","bid_amount"]
[1727199847287,3.3725,148.27,148.24,3.3729]
[1727199847488,4.014,148.29,148.19,3.44129554]
[1727199847989,4.014,148.29,148.18,23.3]
[1727199848284,4.014,148.29,148.18,3.30442002]
[1727199848483,4.014,148.29,148.17,23.3]
[1727199848676,3.3722,148.28,148.24,3.373]
[1727199849180,3.3725,148.27,148.23,3.3732]
[1727199849379,3.3725,148.27,148.17,23.3]
[1727199849590,4.014,148.29,148.17,23.3]
[1727199849886,3.3723,148.28,148.17,23.3]
[1727199850185,23.3,148.28,148.11,21.09671477]
[1727199850488,3.3732,148.24,148.13,23.3]
[1727199850674,23.3,148.25,148.13,26.68169864]
[1727199851185,26.6729,148.25,148.13,26.68169864]
[1727199851687,3.373,148.24,148.2,3.3738]
[1727199852080,23.3,148.25,148.2,3.3738]
[1727199852681,3.3731,148.24,148.2,3.3738]
[1727199852890,23.3,148.25,148.21,3.3737]
[1727199853286,26.6729,148.25,148.21,3.3737]
[1727199853487,23.3,148.27,148.22,3.3734]
[1727199853786,23.3,148.27,148.15,23.3]
[1727199853982,3.3724,148.27,148.24,3.3729]
[1727199854587,14.58,148.26,148.18,3.40972332]
[1727199854890,3.3729,148.25,148.22,3.3733]
[1727199855284,4.014,148.29,148.23,14.58]
[1727199855485,2.6669,148.29,148.28,3.3721]
[1727199855782,156.93325716,148.43,148.25,14.58]
[1727199855987,3.3708,148.34,148.25,14.58]
[1727199856285,3.3708,148.34,148.2,14.58]
[1727199856286,2.7489,148.36,148.27,14.58]
[1727199857382,3.3707,148.35,148.31,3.3714]
[1727199857582,2.7489,148.36,148.31,3.3714]
[1727199857785,2.7489,148.36,148.27,14.58]
[1727199857982,2.7489,148.36,148.29,14.58]
[1727199858189,14.58,148.38,148.29,14.58]
[1727199858391,14.58,148.38,148.31,14.58]
[1727199858600,3.3697,148.39,148.35,3.3704]
[1727199858890,26.1475,148.41,148.3,3.36020107]
[1727199859196,3.3697,148.39,148.3,3.36020107]
[1727199859993,3.3695,148.4,148.29,23.32]
[1727199860387,3.3695,148.4,148.29,26.68660981]
[1727199860783,3.3695,148.4,148.36,3.3701]
[1727199860989,3.3695,148.4,148.29,26.68660981]
[1727199861395,3.3695,148.4,148.35,3.3705]
[1727199862095,3.3695,148.4,148.36,3.3702]
[1727199863191,3.3697,148.39,148.36,3.3702]
[1727199863588,26.1475,148.41,148.29,26.68660981]
[1727199863882,26.1475,148.41,148.29,3.36660981]
[1727199864194,26.1475,148.41,148.34,3.3707]
[1727199864389,3.37,148.38,148.34,3.3707]
[1727199864787,26.1475,148.41,148.34,3.3707]
[1727199866195,26.1475,148.41,148.35,3.3705]
[1727199866498,26.1475,148.41,148.3,26.70481251]
[1727199866692,26.1475,148.41,148.32,23.32]
[1727199866693,6.1968,148.41,148.32,23.32]
[1727199867389,6.1968,148.41,148.33,3.44224155]
[1727199867994,6.1968,148.41,148.37,3.3699]
[1727199868491,3.3694,148.4,148.37,3.3699]
[1727199869102,6.1968,148.41,148.38,3.3698]
[1727199869900,2.8275,148.41,148.34,3.34816912]
[1727199870107,2.8275,148.41,148.32,23.32]
[1727199870305,23.32,148.44,148.32,26.60983748]
[1727199870609,1.3668,148.47,148.35,23.32]
[1727199870802,1.3668,148.47,148.32,3.28983748]
[1727199870803,3.3681,148.46,148.37,23.32]
[1727199871097,3.3681,148.46,148.33,6.7419]
[1727199871098,23.32,148.46,148.35,26.75535765]
[1727199871289,23.32,148.46,148.35,23.32]
[1727199871698,23.32,148.46,148.33,6.7419]
[1727199871897,23.32,148.44,148.32,23.32]
[1727199872103,3.3692,148.42,148.32,26.6532172]
[1727199872697,3.3688,148.43,148.38,3.3697]
[1727199873002,3.3688,148.43,148.32,26.6532172]
[1727199874301,1.3668,148.47,148.34,23.32]
[1727199874800,3.3683,148.45,148.34,23.32]
[1727199874992,3.3683,148.45,148.34,26.7617625]
[1727199875401,3.3683,148.45,148.41,3.369]
[1727199877911,3.3686,148.44,148.4,3.3693]
[1727199878306,3.3689,148.42,148.34,3.4417625]
[1727199878501,23.32,148.43,148.31,104.22]
[1727199878811,23.32,148.43,148.31,107.61490359]
[1727199879011,1.3509,148.42,148.36,3.3702]
[1727199879508,23.32,148.41,148.35,3.3704]
[1727199879905,23.32,148.41,148.31,84.29490359]
[1727199880408,14.57,148.4,148.31,98.86490359]
[1727199880612,3.3697,148.39,148.31,98.86490359]
[1727199881005,14.57,148.4,148.31,98.86490359]
[1727199881006,17.9394,148.4,148.31,98.86490359]
[1727199881207,14.57,148.4,148.31,98.86490359]
[1727199881408,14.57,148.4,148.35,3.3704]
[1727199881608,3.3697,148.39,148.31,98.86490359]
[1727199882111,14.57,148.4,148.36,3.3703]
[1727199882310,15.9209,148.42,148.33,14.57]
[1727199882613,14.57,148.44,148.35,14.57]
[1727199882815,3.3687,148.43,148.39,3.3694]
[1727199883720,14.57,148.44,148.39,3.3694]
[1727199883911,3.3689,148.42,148.39,3.3694]
[1727199884112,14.57,148.44,148.4,3.3694]
[1727199884309,14.57,148.44,148.35,14.57]
[1727199885510,14.57,148.42,148.35,14.57]
[1727199886811,3.3692,148.41,148.38,3.3698]
[1727199888313,17.939,148.42,148.39,3.3696]
[1727199889724,14.57,148.42,148.35,14.57]
[1727199889909,14.57,148.44,148.35,14.57]
[1727199890825,3.369,148.42,148.39,3.3695]
[1727199891818,14.57,148.44,148.35,14.57]
[1727199892018,17.3133,148.46,148.37,14.57]
[1727199892224,14.57,148.44,148.4,3.3692]
[1727199892421,14.57,148.44,148.36,3.40154014]
[1727199892625,14.57,148.44,148.35,14.57]
[1727199893212,14.57,148.44,148.35,17.9128841]
[1727199893628,17.9386,148.44,148.35,17.9128841]
[1727199894124,14.57,148.44,148.35,17.9128841]
[1727199894626,14.57,148.44,148.4,3.3693]
[1727199894818,17.3133,148.46,148.35,3.3428841]
[1727199895127,2.7433,148.46,148.39,14.57]
[1727199895323,6.1115,148.46,148.42,3.3688]
[1727199895918,6.1115,148.46,148.41,3.3691]
[1727199895919,2.7433,148.46,148.41,3.3691]
[1727199896120,17.3133,148.46,148.37,14.57]
[1727199896525,3.3687,148.43,148.41,3.3692]
[1727199896929,3.3686,148.44,148.41,3.3692]
[1727199899330,3.3688,148.43,148.4,3.3693]
[1727199899625,14.57,148.44,148.35,17.87411919]
[1727199900030,3.3689,148.43,148.35,17.87411919]
[1727199900424,17.9386,148.44,148.35,17.87411919]
[1727199900628,14.57,148.42,148.35,3.30411919]
[1727199900929,14.57,148.42,148.33,14.57]
[1727199901431,14.57,148.42,148.33,18.01984495]
[1727199901729,3.3692,148.41,148.33,18.01984495]
[1727199901942,14.57,148.42,148.33,18.01984495]
[1727199902237,17.9395,148.4,148.36,3.3701]
[1727199902424,17.9395,148.4,148.31,14.57]
[1727199902626,17.9395,148.4,148.31,18.00299177]
[1727199903033,1.3974,148.41,148.33,14.57]
[1727199903634,1.3974,148.41,148.35,14.57]
[1727199903833,14.57,148.44,148.35,14.57]
[1727199904038,14.57,148.44,148.36,3.30389049]
[1727199904738,14.57,148.44,148.33,14.57]
[1727199904739,3.369,148.42,148.38,3.3696]
[1727199904930,1.3974,148.45,148.35,14.57]
[1727199905330,14.57,148.44,148.35,14.57]
[1727199905842,3.3687,148.43,148.39,3.3695]
[1727199906141,14.57,148.44,148.34,14.57]
[1727199906441,1.3974,148.45,148.33,3.43874317]
[1727199906442,14.57,148.42,148.33,3.43874317]
[1727199906627,14.57,148.42,148.32,14.57]
[1727199906835,3.3693,148.41,148.37,3.3699]
[1727199907838,3.3693,148.41,148.38,3.3698]
[1727199908242,14.57,148.4,148.38,3.3698]
[1727199908835,14.57,148.39,148.35,3.3704]
[1727199909141,17.3038,148.39,148.35,3.3704]
[1727199909342,20.6735,148.39,148.35,3.3704]
[1727199909537,20.6735,148.39,148.28,87.6239]
[1727199909538,14.57,148.37,148.28,80.88]
[1727199909730,2.7338,148.39,148.29,3.4238031]
[1727199909731,14.57,148.35,148.29,3.4238031]
[1727199909938,14.57,148.35,148.26,14.57]
[1727199910242,14.57,148.35,148.32,3.371]
[1727199910444,14.57,148.35,148.29,3.41335131]
[1727199910637,14.57,148.35,148.26,14.57]
[1727199911135,14.57,148.35,148.31,3.3714]
[1727199911534,17.9407,148.35,148.31,3.3714]
[1727199911738,14.57,148.32,148.29,3.3717]
[1727199911940,14.57,148.32,148.18,6.7485]
[1727199911941,14.57,148.31,148.18,6.7485]
[1727199912138,14.57,148.27,148.13,14.40219385]
[1727199912435,14.57,148.27,148.19,83.8880704]
[1727199912842,14.57,148.27,148.19,3.38840188]
[1727199913141,14.57,148.27,148.18,14.57]
[1727199913342,14.57,148.27,148.18,17.92459269]
[1727199913939,14.57,148.26,148.18,17.92459269]
[1727199914133,14.57,148.24,148.08,99.1600268]
[1727199914334,1.3644,148.3,148.13,14.57]
[1727199914335,14.57,148.22,148.13,14.57]
[1727199915030,14.57,148.22,148.18,3.3742]
[1727199915435,14.57,148.22,148.13,14.57]
[1727199915651,14.57,148.2,148.11,14.57]
[1727199915941,16.0009,148.22,148.13,14.57]
[1727199916148,2.7191,148.23,148.15,14.57]
[1727199916339,2.7191,148.23,148.16,3.39365293]
[1727199916843,6.0925,148.23,148.18,3.3742]
[1727199917545,2.7191,148.23,148.19,3.374]
[1727199918337,2.7191,148.23,148.16,3.39365293]
[1727199918744,2.7191,148.23,148.21,3.3736]
[1727199919242,1.3775,148.31,148.22,3.3733]
[1727199919243,14.57,148.26,148.22,3.3733]
[1727199919436,14.57,148.26,148.16,14.57]
[1727199919836,17.9426,148.26,148.16,14.57]
[1727199920350,17.9426,148.26,148.16,17.86732649]
[1727199920541,3.3728,148.25,148.16,17.86732649]
[1727199920740,14.57,148.23,148.19,3.374]
[1727199920936,14.57,148.23,148.16,3.29732649]
[1727199921945,14.57,148.23,148.15,14.57]
[1727199922843,14.57,148.24,148.17,14.57]
[1727199923039,14.57,148.24,148.17,18.00998919]
[1727199923240,14.57,148.26,148.17,18.00998919]
[1727199923845,14.57,148.28,148.19,14.57]
[1727199924442,17.9421,148.28,148.24,3.3729]
[1727199926145,14.57,148.28,148.25,3.3728]
[1727199926838,14.57,148.28,148.19,14.57]
[1727199927250,17.9419,148.29,148.25,3.3726]
[1727199927456,14.57,148.29,148.21,14.57]
[1727199927756,14.57,148.29,148.22,3.42467602]
[1727199927944,17.9419,148.29,148.25,3.3726]
[1727199928256,17.9419,148.29,148.22,3.42467602]
[1727199928455,3.3721,148.28,148.21,14.57]
[1727199928652,3.3721,148.28,148.21,17.94663652]
[1727199929046,3.3721,148.28,148.25,3.3728]
[1727199929450,3.3724,148.27,148.19,14.57]
[1727199929652,14.57,148.26,148.17,14.57]
[1727199930142,17.9427,148.26,148.22,3.3733]
[1727199930545,17.9432,148.24,148.13,14.57]
[1727199930749,14.57,148.22,148.13,14.57]
[1727199931249,14.57,148.22,148.2,3.3739]
[1727199931955,14.57,148.22,148.19,3.3741]
[1727199932352,28.1464,148.23,148.11,23.34]
[1727199932543,24.7731,148.23,148.2,3.3738]
[1727199932743,1.4331,148.23,148.19,3.31476981]
[1727199933056,23.34,148.28,148.16,23.34]
[1727199933255,23.34,148.28,148.22,3.3734]
[1727199933256,3.3727,148.26,148.22,3.3734]
[1727199933652,3.3741,148.2,148.16,3.3747]
[1727199933860,26.7141,148.2,148.16,3.3747]
[1727199934044,23.34,148.2,148.1,80.98]
[1727199934553,23.34,148.2,148.15,3.3749]
[1727199934753,23.34,148.2,148.1,80.98]
[1727199935656,23.34,148.2,148.17,3.3746]
[1727199937156,23.34,148.2,148.1,80.98]
[1727199937358,24.6372,148.2,148.1,80.98]
[1727199938358,1.2972,148.2,148.01,28.67015956]
[1727199938556,1.2972,148.2,147.99,87.48842127]
[1727199938557,23.34,148.14,148.1,3.376]
[1727199938858,23.34,148.14,148.01,26.79374746]
[1727199939060,23.34,148.14,148.11,3.376]
[1727199939662,26.7149,148.16,148.12,3.3758]
[1727199939859,23.34,148.16,148.04,23.34]
[1727199940561,1.3677,148.15,148.04,26.68368669]
[1727199940761,26.7154,148.14,148.1,3.376]
[1727199940970,23.34,148.12,148.0,6.7566]
[1727199941456,26.716,148.12,148.0,6.7566]
[1727199941655,1.4302,148.13,148.01,23.34]
[1727199941855,1.4302,148.13,148.01,26.68988515]
[1727199942459,1.4302,148.13,148.1,3.376]
[1727199943567,1.4302,148.13,148.09,3.3764]
[1727199944259,1.4302,148.13,148.01,3.34988515]
[1727199944458,1.4302,148.13,148.0,6.7566]
[1727199944668,4.8059,148.13,148.09,3.3763]
[1727199944968,1.4302,148.13,148.04,3.43929464]
[1727199945266,1.4302,148.13,148.0,6.7566]
[1727199945267,4.8058,148.13,148.0,6.7566]
[1727199945563,4.8058,148.13,148.02,23.34]
[1727199945765,4.8058,148.13,148.1,3.3762]
[1727199945962,1.4302,148.13,148.1,3.3762]
[1727199946666,1.4302,148.13,148.02,26.63639889]
[1727199946667,4.8058,148.13,148.09,3.3764]
[1727199947169,1.4302,148.13,148.02,26.63639889]
[1727199947669,1.4302,148.13,148.02,3.29639889]
[1727199947856,3.3758,148.12,148.08,3.3765]
[1727199948264,3.3758,148.12,148.05,3.4430106]
[1727199948569,1.4302,148.13,148.02,23.34]
[1727199948864,1.4302,148.13,148.11,3.376]
[1727199949064,1.4302,148.13,148.03,6.7556]
[1727199949568,1.4302,148.13,148.02,26.71173163]
[1727199950269,1.4302,148.13,148.1,3.3762]
[1727199950975,23.34,148.14,148.02,33.46773163]
[1727199951564,23.34,148.14,148.11,3.3758]
[1727199951759,2.7471,148.19,148.11,3.31509255]
[1727199951961,3.3744,148.18,148.14,3.3752]
[1727199952362,14.6,148.16,148.11,3.39042021]
[1727199952667,14.6,148.16,148.07,14.6]
[1727199952871,14.6,148.14,148.05,14.6]
[1727199953076,14.6,148.14,148.05,17.91407917]
[1727199953471,14.6,148.14,148.12,3.3756]
[1727199953677,14.6,148.14,148.05,17.91407917]
[1727199953866,14.6,148.14,148.12,3.3757]
[1727199955566,14.6,148.14,148.13,3.3755]
[1727199955964,14.6,148.16,148.13,3.3755]
[1727199956172,14.6,148.16,148.07,14.6]
[1727199956574,14.6,148.16,148.14,3.3752]
[1727199956783,14.6,148.18,148.09,14.6]
[1727199957178,14.6,148.18,148.16,3.3748]
[1727199957377,14.6,148.18,148.09,14.6]
[1727199957575,14.6,148.18,148.09,17.9485309]
[1727199958678,14.6,148.18,148.11,3.3758]
[1727199958981,14.6,148.16,148.09,3.3485309]
[1727199959174,14.6,148.16,148.07,14.6]
[1727199959371,14.6,148.16,148.14,3.3753]
[1727199959577,14.6,148.16,148.07,17.99873033]
[1727199959768,14.6,148.16,148.13,3.3754]
[1727199959967,14.6,148.16,148.07,17.99873033]
[1727199960584,14.6,148.16,148.13,3.3753]
[1727199960884,14.6,148.16,148.07,17.99873033]
[1727199961077,14.6,148.18,148.14,3.3752]
[1727199961278,17.9745,148.18,148.14,3.3752]
[1727199961479,2.7471,148.19,148.07,17.99873033]
[1727199961783,14.6,148.16,148.07,14.6]
[1727199961972,14.6,148.16,148.07,17.96586518]
[1727199962578,2.7471,148.19,148.09,14.6]
[1727199962777,17.3471,148.19,148.09,14.6]
[1727199962983,20.7215,148.19,148.09,14.6]
[1727199963280,17.3471,148.19,148.09,14.6]
[1727199963473,17.3471,148.19,148.09,6.7529]
[1727199963685,2.7471,148.19,148.11,14.6]
[1727199964277,1.4222,148.19,148.11,14.6]
[1727199964977,66.59867428,148.27,148.15,14.6]
[1727199965179,18.605,148.26,148.17,14.6]
[1727199966085,14.6,148.25,148.15,14.6]
[1727199966382,14.6,148.25,148.14,14.6]
[1727199966586,14.6,148.23,148.14,14.6]
[1727199967184,14.6,148.23,148.2,3.3739]
[1727199968386,17.9729,148.25,148.2,3.3739]
[1727199969482,14.6,148.21,148.12,3.42045276]
[1727199969687,14.6,148.21,148.11,14.6]
[1727199969874,14.6,148.19,148.11,17.94660791]
[1727199970282,14.6,148.19,148.15,3.3751]
[1727199971580,14.6,148.17,148.1,81.02]
[1727199972180,14.6,148.17,148.11,3.32848946]
[1727199972781,14.6,148.17,148.14,3.3752]
[1727199973180,14.6,148.17,148.12,3.36225381]
[1727199973381,14.6,148.17,148.15,3.3749]
[1727199974187,2.7273,148.2,148.13,3.3262375]
[1727199974378,2.7273,148.2,148.12,14.6]
[1727199974582,2.7273,148.2,148.17,3.3745]
[1727199974884,2.7273,148.2,148.12,17.9758778]
[1727199975291,6.1013,148.2,148.12,17.9758778]
[1727199975490,2.7273,148.2,148.12,17.9758778]
[1727199975691,2.7273,148.2,148.19,3.3742]
[1727199976581,2.7273,148.2,148.18,3.3743]
[1727199977489,1.3103,148.2,148.19,3.3742]
[1727199977790,3.34008275,148.23,148.19,3.3742]
[1727199977990,14.6,148.24,148.14,14.6]
[1727199978491,3.3734,148.23,148.14,14.6]
[1727199978687,3.3734,148.23,148.18,3.3742]
[1727199978890,3.3734,148.23,148.16,3.39207504]
[1727199979093,3.3734,148.23,148.14,14.6]
[1727199979295,6.7043657,148.23,148.18,3.3742]
[1727199979597,17.9735,148.22,148.18,3.3742]
[1727199980193,14.6,148.22,148.17,3.3746]
[1727199980392,14.6,148.2,148.1,14.6]
[1727199980586,2.787,148.19,148.1,14.6]
[1727199981395,2.787,148.19,148.16,3.3748]
[1727199982997,2.787,148.19,148.17,3.3746]
[1727199983200,1.3926,148.19,148.14,14.6]
[1727199983393,14.6,148.24,148.14,14.6]
[1727199983700,3.3734,148.23,148.19,3.3741]
[1727199983900,3.3734,148.23,148.14,14.6]
[1727199984306,3.3734,148.23,148.19,3.374]
[1727199985002,3.3734,148.23,148.2,3.3739]
[1727199985501,14.6,148.24,148.14,14.6]
[1727199985699,3.34356953,148.23,148.14,14.6]
[1727199985897,3.3739,148.2,148.14,14.6]
[1727199986199,18.03404577,148.22,148.14,14.6]
[1727199986395,14.6,148.22,148.14,14.6]
[1727199986595,3.3739,148.21,148.18,3.3743]
[1727199987604,3.374,148.2,148.17,3.3745]
[1727199988397,14.6,148.22,148.14,14.6]
[1727199988903,17.9736,148.22,148.14,14.6]
[1727199989597,14.6,148.22,148.14,14.6]
[1727199989802,17.2074,148.26,148.16,14.6]
[1727199989998,17.2074,148.26,148.2,3.3738]
[1727199990199,3.3734,148.23,148.2,3.3738]
[1727199991201,3.3736,148.22,148.19,3.3741]
[1727199992300,3.3736,148.22,148.2,3.3739]
[1727199992508,3.3734,148.23,148.2,3.3739]
[1727199993100,3.3737,148.22,148.19,3.374]
[1727199993605,3.3733,148.23,148.2,3.3739]
[1727199993805,3.3733,148.23,148.16,14.6]
[1727199994007,3.3733,148.23,148.12,6.7516]
[1727199994008,2.6074,148.26,148.17,14.6]
[1727199994804,5.9801,148.26,148.17,14.6]
[1727199996204,3.3729,148.25,148.17,14.6]
[1727199997008,5.9801,148.26,148.17,14.6]
[1727199998410,2.6074,148.26,148.17,14.6]
[1727199998609,2.6074,148.26,148.19,14.6]
[1727199999015,2.6074,148.26,148.23,3.3731]
[1727199999222,2.6074,148.26,148.19,14.6]
[1727199999715,2.6074,148.26,148.24,3.3729]
[1727200000410,2.6074,148.26,148.21,3.38709677]
[1727200000411,2.6074,148.26,148.25,3.3728]
[1727200000805,2.6074,148.26,148.21,17.98709677]
[1727200001006,2.6074,148.26,148.21,3.38709677]
[1727200001203,2.6074,148.26,148.19,14.6]
[1727200001428,2.6074,148.26,148.17,14.6]
[1727200001429,17.2074,148.26,148.17,14.6]
[1727200001718,20.5801,148.26,148.22,3.3734]
[1727200009022,20.5801,148.26,148.23,3.3732]
[1727200009416,2.6074,148.26,148.24,3.373]
[1727200009729,2.6074,148.26,148.19,14.6]
[1727200010718,2.6074,148.26,148.25,3.3728]
[1727200010920,66.5872925,148.29,148.23,14.6]
[1727200011121,3.3716,148.31,148.28,3.372]
[1727200011418,2.7578,148.34,148.26,3.43166274]
[1727200011419,17.3578,148.34,148.26,3.43166274]
[1727200011621,3.3712,148.32,148.25,14.6]
[1727200012120,3.3712,148.32,148.29,3.3717]
[1727200012519,3.3712,148.33,148.26,3.3283787]
[1727200012719,17.3578,148.34,148.26,3.3283787]
[1727200012920,2.7578,148.34,148.29,14.6]
[1727200013422,1.3116,148.36,148.29,14.6]
[1727200013619,1.3116,148.36,148.31,14.6]
[1727200013820,1.3116,148.36,148.34,3.3706]
[1727200014211,1.3116,148.36,148.31,14.6]
[1727200014618,1.3116,148.36,148.34,3.3707]
[1727200015528,1.3116,148.36,148.33,3.3709]
[1727200015924,4.6819,148.36,148.33,3.3709]
[1727200016521,1.3116,148.36,148.33,3.3709]
[1727200016721,3.31409655,148.39,148.31,14.6]
[1727200017028,15.9043,148.4,148.31,14.6]
[1727200017227,3.37,148.38,148.31,14.6]
[1727200017529,3.38021118,148.39,148.32,3.29353045]
[1727200017935,15.9043,148.4,148.31,14.6]
[1727200018223,3.36199811,148.39,148.31,14.6]
[1727200018431,3.3703,148.37,148.34,3.3707]
[1727200019326,3.39066683,148.38,148.27,14.6]
[1727200019327,14.6,148.36,148.27,14.6]
[1727200019530,14.6,148.36,148.28,3.44507368]
[1727200019726,2.7132,148.35,148.28,3.44507368]
[1727200019932,3.3709,148.34,148.31,3.3713]
[1727200020322,14.6,148.34,148.28,3.372]
[1727200020528,14.6,148.34,148.23,80.48515739]
[1727200020529,14.6,148.31,148.23,80.48515739]
[1727200021129,3.3717,148.3,148.23,80.48515739]
[1727200021637,17.9715,148.31,148.27,3.3722]
[1727200022030,17.9715,148.31,148.28,3.3721]
[1727200022334,1.4057,148.33,148.26,14.6]
[1727200022527,17.3132,148.35,148.29,3.3717]
[1727200022729,3.371,148.33,148.27,3.44454189]
[1727200023836,17.3132,148.35,148.26,14.6]
[1727200024131,17.3132,148.35,148.28,14.6]
[1727200024332,17.3132,148.35,148.26,3.3724]
[1727200024333,3.3718,148.3,148.26,3.3724]
[1727200024724,14.6,148.31,148.23,17.89341519]
[1727200024931,14.6,148.31,148.23,3.29341519]
[1727200025236,14.6,148.31,148.21,14.6]
[1727200026435,23.32,148.32,148.2,23.32]
[1727200026632,3.3721,148.29,148.25,3.3727]
[1727200026834,23.32,148.32,148.25,3.3727]
[1727200027032,3.3721,148.29,148.25,3.3727]
[1727200027425,3.3721,148.29,148.23,3.31139723]
[1727200027426,1.3676,148.31,148.23,3.3732]
[1727200027629,3.3722,148.28,148.2,23.32]
[1727200028036,3.3719,148.29,148.25,3.3728]
[1727200028238,1.3676,148.31,148.2,23.32]
[1727200028635,1.3676,148.31,148.25,3.3728]
[1727200029030,1.3676,148.31,148.23,3.40756069]
[1727200029233,1.3676,148.31,148.2,23.32]
[1727200029741,23.32,148.29,148.17,23.32]
[1727200030043,1.4007,148.28,148.17,23.32]
[1727200030337,2.7785,148.28,148.22,3.3733]
[1727200030938,2.7785,148.28,148.21,3.3736]
[1727200031640,3.373,148.25,148.22,3.3734]
[1727200033444,3.3732,148.24,148.21,3.3737]
[1727200033740,2.7785,148.28,148.17,23.32]
[1727200033936,2.7785,148.28,148.2,3.3737]
[1727200034137,2.7785,148.28,148.17,23.32]
[1727200034637,3.3732,148.24,148.21,3.3736]
[1727200035849,23.32,148.24,148.11,80.96]
[1727200036041,23.32,148.24,148.11,84.36319967]
[1727200036241,3.3742,148.19,148.16,3.3746]
[1727200037634,2.7877,148.22,148.13,23.32]
[1727200037839,23.32,148.27,148.15,23.32]
[1727200038039,2.7877,148.26,148.15,23.32]
[1727200038238,2.7877,148.26,148.13,23.32]
[1727200038738,3.3736,148.22,148.18,3.3743]
[1727200038944,2.7877,148.26,148.13,23.32]
[1727200039145,23.32,148.24,148.13,23.32]
[1727200039643,3.3741,148.2,148.16,3.3747]
[1727200039850,23.32,148.24,148.16,3.3747]
[1727200040153,3.3741,148.2,148.16,3.3747]
[1727200041942,3.3741,148.2,148.17,3.3745]
[1727200043149,23.32,148.24,148.17,3.3745]
[1727200043150,3.3738,148.21,148.17,3.3745]
[1727200044955,23.32,148.24,148.19,3.3741]
[1727200046045,2.7877,148.26,148.2,3.3739]
[1727200046351,3.3734,148.23,148.2,3.3739]
[1727200046847,3.3731,148.24,148.21,3.3736]
[1727200047047,14.58,148.25,148.21,3.3736]
[1727200047346,3.3733,148.23,148.2,3.3738]
[1727200047749,3.3733,148.23,148.18,3.35819887]
[1727200049646,3.3733,148.23,148.2,3.3738]
[1727200051145,3.3733,148.23,148.21,3.3737]
[1727200051347,3.3733,148.23,148.18,3.35819887]
[1727200051846,3.3733,148.23,148.2,3.3738]
[1727200053257,3.3733,148.23,148.19,3.3741]
[1727200053555,3.3735,148.22,148.19,3.3741]
[1727200054059,14.58,148.21,148.09,14.50561335]
[1727200054262,14.58,148.21,148.11,14.58]
[1727200054465,3.3743,148.19,148.16,3.3748]
[1727200054855,14.58,148.21,148.11,17.97555961]
[1727200055168,3.3741,148.2,148.13,14.58]
[1727200055855,3.3741,148.2,148.13,17.95665413]
[1727200056168,3.3741,148.2,148.17,3.3745]
[1727200057659,3.3742,148.19,148.16,3.3748]
[1727200058560,14.58,148.19,148.13,3.37665413]
[1727200058762,14.58,148.19,148.11,14.58]
[1727200059062,3.3744,148.18,148.15,3.3751]
[1727200060156,3.3746,148.17,148.14,3.3752]
[1727200060864,3.3746,148.17,148.15,3.3751]
[1727200061065,3.3745,148.18,148.15,3.3751]